Workbook

Sheet Přehled
C2: =CONCATENATE("Kalkulace pro společnost: ",Kalkulace!C5) -> Kalkulace pro společnost: Projekce Projektant s.r.o.
D4: Stávající dodavatel | F4: Benefit Print s.r.o. | H4: Úspora
B9: Černobílý tisk | D9: =Kalkulace!F31 -> 1610 | F9: 0 | H9: =Kalkulace!F41 -> 0.3800539084
B13: Barevný tisk | D13: =Kalkulace!C31 -> 2100 | F13: =Kalkulace!C38 -> 2300 | H13: =Kalkulace!F40 -> 1410

Sheet Kalkulace
B5: Společnost: | C5: Projekce Projektant s.r.o.
B8: Údaje o Vašich současných cenách:
B10: Barevné tisky účtujete v: | C10: 1 | E10: Černobílé tisky účtujete v: | F10: 1
B12: =VLOOKUP(C10,Výpočty!A4:E6,5) -> Cena za barevný výtisk A4 | C12: 7 | E12: =VLOOKUP(F10,Výpočty!A4:H7,6) -> Cena za černobílý výtisk A4 | F12: 2.3
E13: =IF($F$10=4,Výpočty!F8,"") ->  | F13: 0.61
E14: =IF($F$10=4,Výpočty!F9,"") ->  | F14: 0.5
E15: =IF($F$10=4,Výpočty!F10,"") ->  | F15: 0.4
E16: =IF($F$10=4,Výpočty!F11,"") ->  | F16: 0.31
B19: Údaje o Vašem projektu:
B21: Počet paré: | C21: 10
B22: Počet barevných jednotek: | C22: 30 | D22: =VLOOKUP(C10,Výpočty!A4:D6,4) -> A4 | E22: Počet černobílých jednotek: | F22: 70 | G22: =VLOOKUP(F10,Výpočty!A4:I7,8) -> A4
F23: 200 | G23: =IF($F$10=4,Výpočty!H8,"") -> 
F24: 300 | G24: =IF($F$10=4,Výpočty!H9,"") -> 
F25: 400 | G25: =IF($F$10=4,Výpočty!H10,"") -> 
F26: 500 | G26: =IF($F$10=4,Výpočty!H11,"") -> 
B29: Cena u současného dodavatele:
B31: Barevné tisky | C31: =Výpočty!B20 -> 2100 | E31: Černobílé tisky: | F31: =Výpočty!E20 -> 1610
B32: Cena celkem: | C32: =F31+C31 -> 3710
B35: Cena u Benefit Print:
B37: Barevné tisky | C37: =VLOOKUP(C10,Výpočty!A24:F26,2+F10)*C22*C21 -> 690 | E37: Černobílé tisky: | F37: =F31 -> 1610
B38: Cena celkem: | C38: =F37+C37 -> 2300
E40: Ušetříte celkem: | F40: =C32-C38 -> 1410
E41: to je: | F41: =1-(C38/C32) -> 0.3800539084
F42: Všechny černobílé tisky přitom mohou být v barvě!!

Sheet Výpočty
B2: Údaje o současných cenách: | N2: Koeficient | P2: 2.9
L3: 1 | M3: A4 - > A4 | N3: 1 | S3: 1000 | T3: A4 | U3: =S3*Kalkulace!C12 -> 7000
A4: 1 | B4: Cena za barevný výtisk | C4: 7 | D4: A4 | E4: =CONCATENATE($B$4," ",D4) -> Cena za barevný výtisk A4 | F4: Cena za černobílý výtisk A4 | G4: 2.96875 | H4: A4 | I4: 2.96875 | L4: 2 | M4: A4 - > DM | N4: 0.16 | R4: =N4*P2 -> 0.464 | S4: =2.1*2.97*S3 -> 6237 | T4: dm
A5: 2 | C5: 11.2 | D5: dm2 | E5: =CONCATENATE($B$4," ",D5) -> Cena za barevný výtisk dm2 | F5: Cena za černobílý výtisk dm2 | G5: 0.475 | H5: dm2 | I5: 0.475 | L5: 3 | M5: A4 - > M | N5: 16 | R5: =P2*N5 -> 46.4 | S5: =S4/100 -> 62.37 | T5: m
A6: 3 | C6: 112 | D6: m2 | E6: Cena za barevný výtisk m2 | F6: Cena za černobílý výtisk m2 | G6: 47.5 | H6: m2 | I6: 47.5 | L6: 4 | M6: A4 -> CM
A7: 4 | F7: Cena za černobílý výtisk šířka 914 | G7: =Kalkulace!F12 -> 2.3 | H7: běžné cm 914 | I7: 0.75 | J7: =(100/0.914)*G7 -> 251.6411379 | L7: 5 | M7: DM -> A4
F8: Cena za černobílý výtisk šířka 841 | G8: =Kalkulace!F13 -> 0.61 | H8: běžné cm 841 | I8: 0.6055508831 | J8: =(100/0.841)*G8 -> 72.53269917 | L8: 6 | M8: M -> A4
F9: Cena za černobílý výtisk šířka 594 | G9: =Kalkulace!F14 -> 0.5 | H9: běžné cm 594 | I9: 0.4994054697 | J9: =(100/0.594)*G9 -> 84.17508418 | L9: 7 | M9: CM -> A4
F10: Cena za černobílý výtisk šířka 420 | G10: =Kalkulace!F15 -> 0.4 | H10: běžné cm 420 | I10: 0.404040404 | J10: =(100/0.42)*G10 -> 95.23809524 | L10: 8 | M10: M -> DM
F11: Cena za černobílý výtisk šířka 297 | G11: =Kalkulace!F16 -> 0.31 | H11: běžné cm 297 | I11: 0.3095238095 | J11: =(100/0.297)*G11 -> 104.3771044
B13: Barva: | E13: ČB: | G13: Formátů A4 | O13: A4 | P13: DM | Q13: M | R13: BCM
D14: 914 | E14: =Kalkulace!F12*Kalkulace!F22 -> 161 | F14: =Kalkulace!F12*Kalkulace!F22 -> 161 | G14: =(Kalkulace!F22*Kalkulace!$C$21*(D14/10))/623.7 -> 102.5813692 | N14: A4 | O14: x | P14: 6.237 | Q14: =1/16 -> 0.0625
D15: 841 | E15: =IF(Kalkulace!$F$10=4,F15,0) -> 0 | F15: =Kalkulace!F13*Kalkulace!F23 -> 122 | G15: =(Kalkulace!F23*Kalkulace!$C$21*(D15/10))/623.7 -> 269.6809363 | N15: DM | O15: =1/P14 -> 0.1603334937 | P15: x | Q15: 0.01
D16: 594 | E16: =IF(Kalkulace!$F$10=4,F16,0) -> 0 | F16: =Kalkulace!F14*Kalkulace!F24 -> 150 | G16: =(Kalkulace!F24*Kalkulace!$C$21*(D16/10))/623.7 -> 285.7142857 | N16: M | O16: 16 | P16: 100 | Q16: x
D17: 420 | E17: =IF(Kalkulace!$F$10=4,F17,0) -> 0 | F17: =Kalkulace!F15*Kalkulace!F25 -> 160 | G17: =(Kalkulace!F25*Kalkulace!$C$21*(D17/10))/623.7 -> 269.3602694 | N17: CM | R17: x
D18: 297 | E18: =IF(Kalkulace!$F$10=4,F18,0) -> 0 | F18: =Kalkulace!F16*Kalkulace!F26 -> 155 | G18: =(Kalkulace!F26*Kalkulace!$C$21*(D18/10))/623.7 -> 238.0952381
A19: 1 | B19: =Kalkulace!C12*Kalkulace!C22 -> 210 | E19: =SUM(E14:E18) -> 161 | G19: =SUM(G14:G18) -> 1165.432099
A20: =Kalkulace!C21 -> 10 | B20: =A20*B19 -> 2100 | E20: =A20*E19 -> 1610 | G20: =E20/G19 -> 1.381461864
A23: Přepočtená cena: | C23: Z A4 | D23: Z DM2 | E23: Z M2 | F23: Z bcm
A24: 1 | B24: A4 | C24: =Kalkulace!F12 -> 2.3 | D24: =Kalkulace!F12*6.237 -> 14.3451 | E24: =Kalkulace!F12/16 -> 0.14375 | F24: =G20 -> 1.381461864
A25: 2 | B25: dm2 | C25: =C24/6.237 -> 0.3687670354 | D25: =D24/6.237 -> 2.3 | E25: =Kalkulace!F12/100 -> 0.023 | F25: =G20/6.237 -> 0.2214946071
A26: 3 | B26: m2 | C26: =C24*16 -> 36.8 | D26: =D25*100 -> 230 | E26: =Kalkulace!F12 -> 2.3 | F26: =G20*16 -> 22.10338983
